[Event "Fagernes Chess GM-Swiss 2025"]
[Site "Fagernes"]
[Date "2025.04.14"]
[Round "2.31"]
[White "Skaar, Ben Samuel Groth"]
[Black "Lilliehook, Victor"]
[Result "1/2-1/2"]
[Annotator "RC"]
[ECO "B30"]
[WhiteElo "2167"]
[BlackElo "1993"]
[PlyCount "144"]
[EventDate "2025.04.12"]
[EventCountry "NOR"]
[SourceTitle "playchess.com"]
[Source "ChessBase"]
[SourceQuality "1"]
[TimeControl "40/6000+30:2400+30"]

1. e4 {[%emt 0:01:05]} c5 {[%emt 0:00:01]} 2. Nc3 {[%emt 0:00:44]} Nc6 {[%emt 0:00:05]} 3. Bb5 {[%emt 0:00:04]} Nd4 {[%emt 0:00:10]} 4. Nf3 {[%emt 0:00:06]} e6 {[%emt 0:00:03]} 5. O-O {[%emt 0:00:07]} a6 {[%emt 0:00:05]} 6. Bd3 {[%emt 0:00:05]} Nc6 {[%emt 0:00:43]} 7. b3 {[%emt 0:00:55]} g5 {[%emt 0:01:53]} 8. Bb2 {[%emt 0:02:41]} Bg7 {[%emt 0:00:57]} 9. Na4 {[%emt 0:03:54]} Bxb2 {[%emt 0:00:47]} 10. Nxb2 {[%emt 0:00:07]} g4 {[%emt 0:09:47]} 11. Ne1 {[%emt 0:00:11]} h5 {[%emt 0:00:41]} 12. c3 {[%emt 0:05:19]} Qc7 {[%emt 0:18:56]} 13. Nc2 {[%emt 0:02:57]} Nge7 {[%emt 0:07:04]} 14. Re1 {[%emt 0:03:14]} d6 {[%emt 0:03:14]} 15. Bf1 {[%emt 0:01:47]} e5 {[%emt 0:03:23]} 16. d4 {[%emt 0:00:53]} Ng6 {[%emt 0:01:55]} 17. dxc5 {[%emt 0:06:48]} dxc5 {[%emt 0:00:20]} 18. Nc4 {[%emt 0:02:01]} O-O {[%emt 0:05:51]} 19. Qd6 {[%emt 0:02:31]} Qxd6 {[%emt 0:07:04]} 20. Nxd6 {[%emt 0:00:12]} Rd8 {[%emt 0:00:11]} 21. Rad1 {[%emt 0:00:09]} b5 {[%emt 0:02:10]} 22. Ne3 {[%emt 0:02:06]} Nce7 {[%emt 0:06:56]} 23. Nxc8 {[%emt 0:09:30]} Raxc8 {[%emt 0:00:32]} 24. h3 {[%emt 0:00:41]} gxh3 {[%emt 0:03:41]} 25. g3 {[%emt 0:00:08]} h4 {[%emt 0:03:10]} 26. Bxh3 {[%emt 0:00:08]} Rb8 {[%emt 0:00:08]} 27. Bf5 {[%emt 0:03:34]} hxg3 {[%emt 0:02:26]} 28. fxg3 {[%emt 0:00:14]} Kg7 {[%emt 0:11:12]} 29. Kg2 {[%emt 0:05:39]} f6 {[%emt 0:02:39]} 30. Rh1 {[%emt 0:01:56]} a5 {[%emt 0:04:17]} 31. a3 {[%emt 0:01:49]} Ra8 {[%emt 0:04:31]} 32. Bd7 {[%emt 0:03:29]} Rab8 {[%emt 0:02:51]} 33. Rd6 {[%emt 0:02:56]} Nh8 {[%emt 0:07:23]} 34. Rhd1 {[%emt 0:00:58]} Nf7 {[%emt 0:00:52]} 35. Re6 {[%emt 0:00:42]} Ng6 {[%emt 0:00:52]} 36. Nf5+ {[%emt 0:02:38]} Kg8 {[%emt 0:00:42]} 37. Rxf6 {[%emt 0:03:56]} Nf8 {[%emt 0:00:41]} 38. Ne7+ {[%emt 0:00:16]} Kg7 {[%emt 0:00:33]} 39. Rdf1 {[%emt 0:00:07]} Ng5 {[%emt 0:00:41]} 40. R6f5 {[%emt 0:08:31]} Nfh7 {[%emt 0:00:27]} 41. Nc6 {[%emt 0:40:54]} Rxd7 {[%emt 0:05:31]} 42. Nxb8 {[%emt 0:00:00]} Rd2+ {[%emt 0:00:06]} 43. R1f2 {[%emt 0:00:00]} Rd3 {[%emt 0:02:10]} 44. Rxe5 {[%emt 0:00:00]} Rxc3 {[%emt 0:00:27]} 45. Rb2 {[%emt 0:00:00]} Nf7 {[%emt 0:06:43]} 46. Rf5 {[%emt 0:00:00]} Nhg5 {[%emt 0:03:00]} 47. e5 {[%emt 0:00:00]} Kg6 {[%emt 0:02:30]} 48. Rbf2 {[%emt 0:00:00]} Nh6 {[%emt 0:03:40]} 49. R5f4 {[%emt 0:00:00]} Rxb3 {[%emt 0:05:37]} 50. Nc6 {[%emt 0:00:00]} Rxa3 {[%emt 0:02:04]} 51. e6 {[%emt 0:00:00]} Re3 {[%emt 0:01:32]} 52. e7 {[%emt 0:00:00]} Ng8 {[%emt 0:01:45]} 53. Rd2 {[%emt 0:00:00]} Nf7 {[%emt 0:05:49]} 54. Kf2 {[%emt 0:00:00]} Re6 {[%emt 0:01:52]} 55. Re2 {[%emt 0:00:00]} Rxe2+ {[%emt 0:01:27]} 56. Kxe2 {[%emt 0:00:00]} Nd6 {[%emt 0:00:14]} 57. Rg4+ {[%emt 0:00:00]} Kh7 {[%emt 0:00:55]} 58. Rf4 {[%emt 0:01:44]} Kg7 {[%emt 0:01:18]} 59. Rg4+ {[%emt 0:00:32]} Kh7 {[%emt 0:00:19]} 60. Rg5 {[%emt 0:00:10]} Nf6 {[%emt 0:01:30]} 61. Rxc5 {[%emt 0:00:34]} a4 {[%emt 0:00:24]} 62. Kd3 {[%emt 0:00:30]} Kg7 {[%emt 0:00:43]} 63. Re5 {[%emt 0:00:23]} Kf7 {[%emt 0:00:38]} 64. Nd8+ {[%emt 0:00:46]} Ke8 {[%emt 0:00:15]} 65. Re6 {[%emt 0:00:33]} Nfe4 {[%emt 0:01:38]} 66. Kc2 {[%emt 0:00:56]} b4 {[%emt 0:00:34]} 67. Nb7 {[%emt 0:02:33]} b3+ {[%emt 0:00:42]} 68. Kc1 {[%emt 0:00:00]} Nc4 {[%emt 0:00:31]} 69. Rxe4 {[%emt 0:00:35]} b2+ {[%emt 0:00:10]} 70. Kc2 {[%emt 0:00:19]} b1=Q+ {[%emt 0:00:07]} 71. Kxb1 {[%emt 0:01:00]} Nd2+ {[%emt 0:00:03]} 72. Ka2 {[%emt 0:00:14]} Nxe4 {[%emt 0:00:05]} 1/2-1/2

[Event "Fagernes Chess GM-Swiss 2025"]
[Site "Fagernes"]
[Date "2025.04.14"]
[Round "2.32"]
[White "Halvorsen, Benjamin"]
[Black "Torfoss, Sivert Schanche"]
[Result "0-1"]
[Annotator "NA RC"]
[ECO "C54"]
[WhiteElo "1966"]
[BlackElo "2141"]
[PlyCount "232"]
[EventDate "2025.04.12"]
[EventCountry "NOR"]
[SourceTitle "playchess.com"]
[Source "ChessBase"]
[SourceQuality "1"]
[TimeControl "40/6000+30:2400+30"]

1. e4 {[%emt 0:01:28]} e5 {[%emt 0:00:04]} 2. Nf3 {[%emt 0:00:07]} Nc6 {[%emt 0:00:03]} 3. Bc4 {[%emt 0:00:11]} Bc5 {[%emt 0:00:06]} 4. c3 {[%emt 0:00:39]} Nf6 {[%emt 0:00:06]} 5. d4 {[%emt 0:00:23]} exd4 {[%emt 0:00:07]} 6. b4 {[%emt 0:00:08]} Be7 {[%emt 0:00:37]} 7. e5 {[%emt 0:01:05]} Ng4 {[%emt 0:01:44]} 8. cxd4 {[%emt 0:02:57]} Bxb4+ {[%emt 0:00:18]} 9. Bd2 {[%emt 0:01:13]} Bxd2+ {[%emt 0:02:19]} 10. Nbxd2 {[%emt 0:00:53]} d5 {[%emt 0:00:42]} 11. exd6 {[%emt 0:04:06]} O-O {[%emt 0:12:02]} 12. dxc7 {[%emt 0:10:48]} Qxc7 {[%emt 0:08:28]} 13. h3 {[%emt 0:03:58]} Re8+ {[%emt 0:03:58]} 14. Be2 {[%emt 0:02:31]} Bf5 {[%emt 0:13:32]} 15. Nb3 {[%emt 0:06:20]} Nf6 {[%emt 0:02:52]} 16. O-O {[%emt 0:01:22]} Rad8 {[%emt 0:00:14]} 17. Rc1 {[%emt 0:02:45]} Qf4 {[%emt 0:02:38]} 18. Bb5 {[%emt 0:13:46]} Be4 {[%emt 0:01:38]} 19. Nbd2 {[%emt 0:14:51]} Bd5 {[%emt 0:05:34]} 20. Qa4 {[%emt 0:05:38]} Ne4 {[%emt 0:11:43]} 21. Nxe4 {[%emt 0:07:06]} Rxe4 {[%emt 0:05:57]} 22. Bxc6 {[%emt 0:00:45]} Bxc6 {[%emt 0:00:11]} 23. Qxa7 {[%emt 0:02:12]} Ree8 {[%emt 0:03:05]} 24. Rc3 {[%emt 0:06:02]} h6 {[%emt 0:05:58]} 25. Qc5 {[%emt 0:07:56]} Rd5 {[%emt 0:01:57]} 26. Qa3 {[%emt 0:02:13]} Rdd8 {[%emt 0:05:01]} 27. Re3 {[%emt 0:01:26]} Rf8 {[%emt 0:04:42]} 28. Rd1 {[%emt 0:01:44]} Ra8 {[%emt 0:06:13]} 29. Qb2 {[%emt 0:00:37]} Rfd8 {[%emt 0:01:21]} 30. Qd2 {[%emt 0:01:38]} Qf6 {[%emt 0:01:17]} 31. Ne5 {[%emt 0:01:36]} Bd5 {[%emt 0:02:14]} 32. a3 {[%emt 0:01:02]} Ra6 {[%emt 0:00:50]} 33. Qb2 {[%emt 0:03:35]} Rad6 {[%emt 0:00:25]} 34. Qc3 {[%emt 0:01:56]} Qh4 {[%emt 0:06:06]} 35. Rg3 {[%emt 0:01:25]} Be6 {[%emt 0:00:53]} 36. Rgd3 {[%emt 0:00:58]} Qe4 {[%emt 0:01:12]} 37. Re3 {[%emt 0:00:34]} Qf5 {[%emt 0:00:46]} 38. Nf3 {[%emt 0:00:47]} Qh5 {[%emt 0:00:31]} 39. Re5 {[%emt 0:00:43]} Qg6 {[%emt 0:00:09]} 40. Kh2 {[%emt 0:00:32]} Bd5 {[%emt 0:00:32]} 41. Nh4 {[%emt 0:10:12]} Qf6 {[%emt 0:00:26]} 42. Nf5 {[%emt 0:01:39]} R6d7 {[%emt 0:00:59]} 43. Rd2 {[%emt 0:03:24]} Be6 {[%emt 0:02:22]} 44. Qc5 {[%emt 0:10:40]} g6 {[%emt 0:16:21]} 45. Ne3 {[%emt 0:05:20]} b6 {[%emt 0:03:37]} 46. Qxb6 {[%emt 0:03:32]} Rxd4 {[%emt 0:02:16]} 47. Rxe6 {[%emt 0:02:35]} Qxe6 {[%emt 0:05:15]} 48. Qxe6 {[%emt 0:02:28]} fxe6 {[%emt 0:00:12]} 49. Rb2 {[%emt 0:00:22]} Rd2 {[%emt 0:01:52]} 50. Rb7 {[%emt 0:01:35]} R8d7 {[%emt 0:02:29]} 51. Rb8+ {[%emt 0:00:11]} Kg7 {[%emt 0:00:11]} 52. Kg3 {[%emt 0:01:53]} Rf7 {[%emt 0:01:22]} 53. f3 {[%emt 0:00:17]} Rd3 {[%emt 0:03:27]} 54. Nc4 {[%emt 0:00:05]} Rc7 {[%emt 0:00:38]} 55. Ne5 {[%emt 0:01:48]} Re3 {[%emt 0:02:17]} 56. Ng4 {[%emt 0:00:50]} Rxa3 {[%emt 0:00:31]} 57. Rb6 {[%emt 0:00:21]} Re7 {[%emt 0:00:19]} 58. Nf2 {[%emt 0:00:43]} Ra2 {[%emt 0:00:59]} 59. Ne4 {[%emt 0:00:14]} Rc2 {[%emt 0:02:12]} 60. h4 {[%emt 0:00:43]} Kf7 {[%emt 0:01:53]} 61. Ra6 {[%emt 0:01:16]} Rd7 {[%emt 0:01:05]} 62. Kh3 {[%emt 0:00:32]} Rcc7 {[%emt 0:00:49]} 63. Rb6 {[%emt 0:00:29]} Re7 {[%emt 0:00:44]} 64. Ra6 {[%emt 0:00:12]} Rc1 {[%emt 0:00:45]} 65. Kh2 {[%emt 0:00:46]} Rc2 {[%emt 0:00:14]} 66. Kh3 {[%emt 0:00:05]} Rec7 {[%emt 0:00:30]} 67. Kg3 {[%emt 0:00:27]} Re2 {[%emt 0:00:38]} 68. Kh3 {[%emt 0:00:52]} Ke7 {[%emt 0:00:38]} 69. Rb6 {[%emt 0:00:23]} h5 {[%emt 0:01:18]} 70. Ra6 {[%emt 0:00:44]} Rb7 {[%emt 0:00:26]} 71. g4 {[%emt 0:00:52]} Re3 {[%emt 0:00:28]} 72. Kg3 {[%emt 0:00:23]} hxg4 {[%emt 0:00:37]} 73. Kxg4 {[%emt 0:00:06]} Re1 {[%emt 0:00:25]} 74. Kg5 {[%emt 0:01:00]} Rg1+ {[%emt 0:00:23]} 75. Kf4 {[%emt 0:00:13]} Rc7 {[%emt 0:00:25]} 76. Rb6 {[%emt 0:00:13]} Rf1 {[%emt 0:00:38]} 77. Ra6 {[%emt 0:00:26]} Rb7 {[%emt 0:00:27]} 78. Rc6 {[%emt 0:01:09]} Ra7 {[%emt 0:00:37]} 79. Nc5 {[%emt 0:00:28]} e5+ {[%emt 0:00:29]} 80. Kxe5 {[%emt 0:00:20]} Rxf3 {[%emt 0:00:32]} 81. Rxg6 {[%emt 0:00:22]} Ra5 {[%emt 0:00:11]} 82. Rg7+ {[%emt 0:00:40]} Rf7 {[%emt 0:00:52]} 83. Rxf7+ {[%emt 0:00:14]} Kxf7 {[%emt 0:00:03]} 84. Kd4 {[%emt 0:00:32]} Kg6 {[%emt 0:00:05]} 85. Ne4 {[%emt 0:00:53]} Kh5 {[%emt 0:00:11]} 86. Nf6+ {[%emt 0:00:25]} Kxh4 {[%emt 0:00:07]} 87. Ne4 {[%emt 0:00:15]} Kg4 {[%emt 0:00:08]} 88. Nc3 {[%emt 0:00:20]} Kf5 {[%emt 0:00:29]} 89. Kc4 {[%emt 0:00:51]} Ke5 {[%emt 0:00:09]} 90. Nb5 {[%emt 0:00:23]} Ra4+ {[%emt 0:00:28]} 91. Kb3 {[%emt 0:00:05]} Rh4 {[%emt 0:00:16]} 92. Nc3 {[%emt 0:00:24]} Kd4 {[%emt 0:00:14]} 93. Nb5+ {[%emt 0:00:18]} Kc5 {[%emt 0:00:07]} 94. Nc3 {[%emt 0:00:17]} Rh3 {[%emt 0:00:13]} 95. Kc2 {[%emt 0:00:10]} Kc4 {[%emt 0:00:26]} 96. Ne4 {[%emt 0:00:10]} Rh2+ {[%emt 0:00:55]} 97. Nd2+ {[%emt 0:00:08]} Kd4 {[%emt 0:00:11]} 98. Kd1 {[%emt 0:00:38]} Kd3 {[%emt 0:01:44]} 99. Nf1 {[%emt 0:01:20]} Re2 {[%emt 0:01:13]} 100. Ng3 {[%emt 0:00:01]} Re8 {[%emt 0:01:12]} 101. Nf1 {[%emt 0:00:37]} Rg8 {[%emt 0:00:39]} 102. Ke1 {[%emt 0:00:12]} Rg2 {[%emt 0:00:09]} 103. Kd1 {[%emt 0:00:09]} Ra2 {[%emt 0:00:34]} 104. Ke1 {[%emt 0:00:13]} Rb2 {[%emt 0:00:06]} 105. Ng3 {[%emt 0:00:16]} Rg2 {[%emt 0:00:24]} 106. Nf1 {[%emt 0:00:12]} Re2+ {[%emt 0:00:20]} 107. Kd1 {[%emt 0:00:07]} Re7 {[%emt 0:00:14]} 108. Ng3 {[%emt 0:00:28]} Re8 {[%emt 0:00:22]} 109. Nf1 {[%emt 0:00:17]} Re6 {[%emt 0:00:11]} 110. Ng3 {[%emt 0:00:09]} Ke3 {[%emt 0:00:06]} 111. Nf1+ {[%emt 0:00:45]} Kd3 {[%emt 0:00:04]} 112. Ng3 {[%emt 0:00:14]} Ra6 {[%emt 0:00:12]} 113. Ke1 {[%emt 0:00:35]} Ra2 {[%emt 0:00:09]} 114. Nf1 {[%emt 0:00:20]} Re2+ {[%emt 0:00:23]} 115. Kd1 {[%emt 0:01:11]} Rf2 {[%emt 0:00:06]} 116. Ng3 {[%emt 0:00:22]} Rf3 {[%emt 0:02:19]} 0-1

[Event "Fagernes Chess GM-Swiss 2025"]
[Site "Fagernes"]
[Date "2025.04.14"]
[Round "2.33"]
[White "Khoo-Thwe, Louis"]
[Black "Ashwath Kaushik"]
[Result "1-0"]
[Annotator "NA RC"]
[ECO "B22"]
[WhiteElo "2118"]
[BlackElo "1958"]
[PlyCount "107"]
[EventDate "2025.04.12"]
[EventCountry "NOR"]
[SourceTitle "playchess.com"]
[Source "ChessBase"]
[SourceQuality "1"]
[TimeControl "40/6000+30:2400+30"]

1. e4 {[%emt 0:00:03]} c5 {[%emt 0:00:07]} 2. Nf3 {[%emt 0:00:08]} e6 {[%emt 0:00:24]} 3. c3 {[%emt 0:02:06]} Nf6 {[%emt 0:01:11]} 4. e5 {[%emt 0:00:23]} Nd5 {[%emt 0:00:29]} 5. Bc4 {[%emt 0:00:24]} Nb6 {[%emt 0:01:15]} 6. Bb3 {[%emt 0:00:16]} c4 {[%emt 0:01:17]} 7. Bc2 {[%emt 0:00:14]} Nc6 {[%emt 0:01:52]} 8. d4 {[%emt 0:06:30]} cxd3 {[%emt 0:00:41]} 9. Qxd3 {[%emt 0:00:33]} Qc7 {[%emt 0:04:43]} 10. Qe2 {[%emt 0:03:20]} d6 {[%emt 0:02:58]} 11. exd6 {[%emt 0:01:33]} Bxd6 {[%emt 0:00:10]} 12. Nbd2 {[%emt 0:01:04]} Bd7 {[%emt 0:10:32]} 13. Ne4 {[%emt 0:02:21]} Be7 {[%emt 0:02:49]} 14. Bg5 {[%emt 0:01:57]} f6 {[%emt 0:04:45]} 15. Bh4 {[%emt 0:01:38]} e5 {[%emt 0:03:40]} 16. Bg3 {[%emt 0:07:09]} O-O-O {[%emt 0:04:01]} 17. O-O-O {[%emt 0:02:57]} Be6 {[%emt 0:02:57]} 18. Kb1 {[%emt 0:02:14]} Bc4 {[%emt 0:01:25]} 19. Qe1 {[%emt 0:02:34]} Rxd1+ {[%emt 0:09:17]} 20. Qxd1 {[%emt 0:00:06]} Rd8 {[%emt 0:14:21]} 21. Qc1 {[%emt 0:05:17]} f5 {[%emt 0:05:09]} 22. Ned2 {[%emt 0:00:10]} Bd3 {[%emt 0:05:16]} 23. Bxd3 {[%emt 0:05:07]} Rxd3 {[%emt 0:00:08]} 24. Qc2 {[%emt 0:00:56]} Qd8 {[%emt 0:06:54]} 25. Nb3 {[%emt 0:06:58]} f4 {[%emt 0:08:13]} 26. Bh4 {[%emt 0:01:57]} Bxh4 {[%emt 0:00:15]} 27. Nxh4 {[%emt 0:00:09]} Nc4 {[%emt 0:05:24]} 28. Nf3 {[%emt 0:04:42]} e4 {[%emt 0:02:59]} 29. Nfd4 {[%emt 0:02:36]} Qd5 {[%emt 0:05:31]} 30. f3 {[%emt 0:08:50]} Ne3 {[%emt 0:05:08]} 31. Qe2 {[%emt 0:06:32]} a5 {[%emt 0:00:28]} 32. Rc1 {[%emt 0:07:46]} Kb8 {[%emt 0:01:35]} 33. fxe4 {[%emt 0:01:40]} Qc4 {[%emt 0:00:33]} 34. Nxc6+ {[%emt 0:00:46]} bxc6 {[%emt 0:00:10]} 35. Nd2 {[%emt 0:09:40]} Rxd2 {[%emt 0:00:45]} 36. Qxd2 {[%emt 0:00:08]} Qxe4+ {[%emt 0:00:02]} 37. Ka1 {[%emt 0:00:12]} Qxg2 {[%emt 0:00:32]} 38. Qd6+ {[%emt 0:10:16]} Kb7 {[%emt 0:00:08]} 39. Qxf4 {[%emt 0:01:54]} Qd2 {[%emt 0:00:08]} 40. Qf7+ {[%emt 0:00:04]} Ka6 {[%emt 0:00:38]} 41. Rg1 {[%emt 0:41:10]} Qxh2 {[%emt 0:04:36]} 42. Qxg7 {[%emt 0:00:00]} h5 {[%emt 0:01:48]} 43. Qg8 {[%emt 0:00:00]} Qd6 {[%emt 0:04:39]} 44. a3 {[%emt 0:00:00]} h4 {[%emt 0:08:20]} 45. Rg6 {[%emt 0:00:00]} Qc5 {[%emt 0:04:20]} 46. Rg7 {[%emt 0:00:00]} Nd5 {[%emt 0:04:53]} 47. Qb8 {[%emt 0:00:00]} Nb6 {[%emt 0:00:40]} 48. Ra7+ {[%emt 0:00:00]} Kb5 {[%emt 0:00:10]} 49. Rxa5+ {[%emt 0:00:00]} Kxa5 {[%emt 0:00:18]} 50. b4+ {[%emt 0:00:00]} Ka4 {[%emt 0:00:17]} 51. bxc5 {[%emt 0:00:00]} Nd5 {[%emt 0:00:04]} 52. Kb2 {[%emt 0:00:00]} h3 {[%emt 0:00:09]} 53. Qa7+ {[%emt 0:00:00]} Kb5 {[%emt 0:00:08]} 54. Kb3 {[%emt 0:00:00]} 1-0

[Event "Fagernes Chess GM-Swiss 2025"]
[Site "Fagernes"]
[Date "2025.04.14"]
[Round "2.34"]
[White "Strand, Amund Pihl"]
[Black "Verbin, Valentina"]
[Result "0-1"]
[Annotator "NA RC"]
[ECO "A17"]
[WhiteElo "1914"]
[BlackElo "2113"]
[PlyCount "56"]
[EventDate "2025.04.12"]
[EventCountry "NOR"]
[SourceTitle "playchess.com"]
[Source "ChessBase"]
[SourceQuality "1"]
[TimeControl "40/6000+30:2400+30"]

1. c4 {[%emt 0:04:49]} e6 {[%emt 0:00:23]} 2. Nc3 {[%emt 0:00:24]} Nf6 {[%emt 0:00:23]} 3. Nf3 {[%emt 0:00:20]} d5 {[%emt 0:00:25]} 4. e3 {[%emt 0:00:14]} Bd6 {[%emt 0:00:57]} 5. b3 {[%emt 0:02:44]} O-O {[%emt 0:00:48]} 6. Bb2 {[%emt 0:00:14]} Re8 {[%emt 0:00:40]} 7. d4 {[%emt 0:02:49]} b6 {[%emt 0:01:01]} 8. Bd3 {[%emt 0:02:09]} Bb7 {[%emt 0:01:14]} 9. O-O {[%emt 0:01:24]} Nbd7 {[%emt 0:03:51]} 10. Qc2 {[%emt 0:23:12]} c5 {[%emt 0:18:12]} 11. cxd5 {[%emt 0:09:31]} exd5 {[%emt 0:00:58]} 12. Rac1 {[%emt 0:14:07]} Rc8 {[%emt 0:07:53]} 13. Qb1 {[%emt 0:01:27]} a6 {[%emt 0:05:42]} 14. Ne2 {[%emt 0:04:25]} Qe7 {[%emt 0:11:14]} 15. Ng3 {[%emt 0:03:50]} g6 {[%emt 0:00:17]} 16. Rfd1 {[%emt 0:19:10]} Rc7 {[%emt 0:21:02]} 17. Ba1 {[%emt 0:06:06]} Rec8 {[%emt 0:02:24]} 18. dxc5 {[%emt 0:03:28]} bxc5 {[%emt 0:01:43]} 19. Bf1 {[%emt 0:07:35]} Ng4 {[%emt 0:08:28]} 20. Rd2 {[%emt 0:01:40]} h5 {[%emt 0:03:53]} 21. Qb2 {[%emt 0:00:46]} Nde5 {[%emt 0:02:36]} 22. Nxe5 {[%emt 0:00:22]} Bxe5 {[%emt 0:00:27]} 23. Qb1 {[%emt 0:00:29]} h4 {[%emt 0:00:41]} 24. h3 {[%emt 0:00:42]} hxg3 {[%emt 0:05:08]} 25. hxg4 {[%emt 0:00:22]} Qh4 {[%emt 0:00:11]} 26. Bd3 {[%emt 0:00:38]} Bxa1 {[%emt 0:01:36]} 27. Qxa1 {[%emt 0:00:07]} Qh2+ {[%emt 0:00:56]} 28. Kf1 {[%emt 0:00:04]} c4 {[%emt 0:04:05]} 0-1